bitfinex/quotes_ETHUSD_20220112
["timestamp","ask_amount","ask_price","bid_price","bid_amount"]
[1641956097860,2.3253351,3227.0,3226.2,1.2175]
[1641956098061,0.3,3226.8,3226.7,0.00511581]
[1641956098261,1.045,3226.8,3226.7,0.00511581]
[1641956098662,5.80540175,3226.8,3226.7,0.00511581]
[1641956098864,5.80540175,3226.8,3226.6,1.30721581]
[1641956099099,7.4593288,3226.7,3226.6,1.30721581]
[1641956099296,8.02035313,3226.7,3226.6,1.30721581]
[1641956099497,8.32035313,3226.7,3226.6,1.30721581]
[1641956100001,3.37775475,3226.7,3226.6,1.30721581]
[1641956100197,3.2977717,3226.7,3226.6,3.75721581]
[1641956100399,1.2225237,3226.7,3226.6,3.75721581]
[1641956100601,0.4472737,3226.7,3226.6,3.75721581]
[1641956100798,0.4472737,3226.7,3226.6,1.30721581]
[1641956101600,1.25677,3226.7,3226.6,1.30721581]
[1641956102001,1.85677,3226.7,3226.6,1.30721581]
[1641956102401,2.85677,3226.7,3226.6,1.30721581]
[1641956104039,2.85677,3226.7,3226.6,3.70721581]
[1641956104440,2.85677,3226.7,3226.6,1.30721581]
[1641956108090,5.85677,3226.7,3226.6,3.95721581]
[1641956110353,5.85677,3226.7,3226.6,1.30721581]
[1641956112956,5.85677,3226.7,3226.6,3.70721581]
[1641956114112,4.25677,3226.7,3226.6,3.70721581]
[1641956114299,3.81177,3226.7,3226.6,3.70721581]
[1641956114897,3.81177,3226.7,3226.6,6.10721581]
[1641956115299,5.41177,3226.7,3226.6,6.10721581]
[1641956115703,5.41177,3226.7,3226.6,3.70721581]
[1641956116500,3.81177,3226.7,3226.6,3.70721581]
[1641956116901,4.11177,3226.7,3226.6,6.65721581]
[1641956119146,3.81177,3226.7,3226.6,6.65721581]
[1641956123295,4.81177,3226.7,3226.6,3.70721581]
[1641956123501,5.85677,3226.7,3226.6,1.30721581]
[1641956125741,6.63189,3226.7,3226.6,1.30721581]
[1641956127750,6.63189,3226.7,3226.6,3.90721581]
[1641956129284,6.6296163,3226.7,3226.6,3.90721581]
[1641956131485,5.8544963,3226.7,3226.6,3.90721581]
[1641956132686,4.5544963,3226.7,3226.6,3.90721581]
[1641956132943,4.5544963,3226.7,3226.6,6.75721581]
[1641956133141,4.1094963,3226.7,3226.6,6.75721581]
[1641956134143,3.8094963,3226.7,3226.6,6.75721581]
[1641956135543,4.1094963,3226.7,3226.6,6.75721581]
[1641956136143,3.8094963,3226.7,3226.6,6.75721581]
[1641956137407,4.1094963,3226.7,3226.6,6.75721581]
[1641956138613,4.8544963,3226.7,3226.6,1.30721581]
[1641956138812,5.8544963,3226.7,3226.6,1.30721581]
[1641956139612,5.8544963,3226.7,3226.6,4.70721581]
[1641956141137,4.2544963,3226.7,3226.6,4.70721581]
[1641956142744,4.2544963,3226.7,3226.6,7.25721581]
[1641956143243,4.2544963,3226.7,3226.6,4.70721581]
[1641956146692,4.2544963,3226.7,3226.6,8.40721581]
[1641956147095,4.2544963,3226.7,3226.6,4.70721581]
[1641956147496,4.2544963,3226.7,3226.6,1.30721581]
[1641956147497,5.8544963,3226.7,3226.6,1.30721581]
[1641956147698,5.3296266,3226.7,3226.6,1.30721581]
[1641956147941,5.8544963,3226.7,3226.6,1.30721581]
[1641956148543,5.8544963,3226.7,3226.6,5.35721581]
[1641956148945,5.5544963,3226.7,3226.6,5.35721581]
[1641956149345,5.8544963,3226.7,3226.6,5.35721581]
[1641956150948,5.2544963,3226.7,3226.6,5.35721581]
[1641956151249,5.5544963,3226.7,3226.6,5.35721581]
[1641956156246,5.5544963,3226.7,3226.6,1.30721581]
[1641956157048,5.93447935,3226.7,3226.6,1.30721581]
[1641956157246,3.4,3226.6,3226.0,1.42653555]
[1641956157451,0.445,3226.5,3225.4,1.143]
[1641956157649,5.58646888,3226.4,3226.1,0.00113685]
[1641956157847,5.45451952,3226.3,3226.1,0.00113685]
[1641956158051,0.27311608,3225.5,3224.9,11.3297]
[1641956158251,0.445,3225.4,3224.9,11.3297]
[1641956158451,0.445,3225.4,3225.1,1.3526398]
[1641956158855,0.445,3225.4,3225.2,0.00511581]
[1641956162100,0.27311608,3225.5,3225.2,0.00511581]
[1641956165848,1.25472103,3226.3,3225.2,0.00511581]
[1641956166048,0.80972103,3226.3,3225.2,0.00511581]
[1641956166450,1.0,3226.5,3225.2,0.00511581]
[1641956166692,0.3,3226.4,3225.2,1.24381581]
[1641956166892,0.30170527,3226.4,3225.3,6.67570036]
[1641956167093,0.00113685,3226.3,3225.3,6.68024775]
[1641956167291,0.00113685,3226.3,3225.4,0.00397896]
[1641956168297,0.00113685,3226.3,3225.5,2.6426028]
[1641956168497,0.445,3226.2,3225.5,2.6426028]
[1641956168694,0.445,3226.2,3225.6,0.00284212]
[1641956169497,3.545,3226.2,3225.6,0.00284212]
[1641956169797,0.00837072,3226.1,3225.3,0.00454739]
[1641956170652,1.0,3226.1,3225.3,0.00454739]
[1641956173155,3.545,3226.2,3225.3,0.00454739]
[1641956173355,3.845,3226.2,3225.3,0.00454739]
[1641956173756,3.545,3226.2,3225.3,0.00454739]
[1641956176693,3.545,3226.2,3225.4,2.64262424]
[1641956176993,3.545,3226.2,3225.5,0.025001]
[1641956177393,3.545,3226.2,3225.6,0.00284212]
[1641956177693,3.545,3226.2,3225.7,0.01461059]
[1641956177953,3.545,3226.2,3225.8,0.00170527]
[1641956178152,0.03498952,3226.1,3225.8,0.00170527]
[1641956178550,0.03498952,3226.1,3225.3,0.00454739]
[1641956179052,0.03498952,3226.1,3226.0,1.5568383]
[1641956179254,4.62019,3226.2,3225.3,3.95164739]
[1641956179655,4.62019,3226.2,3225.4,2.64668133]
[1641956179854,1.0,3226.1,3225.4,2.64668133]
[1641956180056,1.0,3226.1,3225.5,0.00341054]
[1641956180357,0.26950255,3225.8,3225.6,1.41161311]
[1641956180756,0.26950255,3225.8,3225.7,5.95227369]
[1641956185205,0.26950255,3225.8,3225.7,8.40227369]
[1641956194746,0.26950255,3225.8,3225.7,5.95227369]
[1641956198097,3.545,3226.2,3225.7,8.65227369]
[1641956198298,3.545,3226.2,3225.8,0.03919037]
[1641956198498,3.1,3226.2,3225.8,0.04089564]
[1641956198800,3.1,3226.2,3225.9,0.00113685]
[1641956199199,3.1,3226.2,3225.8,0.00170527]
[1641956203066,3.1,3226.2,3225.8,4.33592309]
[1641956203463,3.1,3226.2,3225.9,0.00113685]
[1641956206408,3.1,3226.2,3225.9,0.30113685]
[1641956206612,3.1,3226.2,3226.0,0.02149716]
[1641956206810,3.1,3226.2,3226.0,4.37098513]
[1641956207208,3.1,3226.2,3226.1,10.37670433]
[1641956207412,3.1,3226.2,3226.1,14.36418472]
[1641956210756,0.27639994,3227.6,3226.1,14.36418472]
[1641956210757,3.0515,3227.7,3226.3,0.77477]
[1641956210958,1.6147,3228.2,3226.4,4.34352344]
[1641956211156,0.00625266,3227.2,3226.4,4.34352344]
[1641956211355,0.00625266,3227.2,3226.5,1.0]
[1641956211610,0.00568424,3227.1,3226.7,1.4933907]
[1641956211800,0.00568424,3227.1,3226.7,5.4476907]
[1641956211997,0.00511581,3227.0,3226.8,1.39788234]
[1641956212402,0.00454739,3226.9,3226.8,1.39788234]
[1641956213003,0.00454739,3226.9,3226.8,6.03149804]
[1641956213906,4.739e-05,3226.9,3226.8,6.03149804]
[1641956214207,4.739e-05,3226.9,3226.8,4.6336157]
[1641956215009,4.739e-05,3226.9,3226.8,1.28444144]
[1641956215208,4.739e-05,3226.9,3226.7,6.7528878]
[1641956215647,4.739e-05,3226.9,3226.8,0.3]
[1641956216047,4.739e-05,3226.9,3226.8,1.3]
[1641956216249,4.739e-05,3226.9,3226.8,6.03957082]
[1641956216450,4.739e-05,3226.9,3226.8,7.11411082]
[1641956216647,4.739e-05,3226.9,3226.8,10.29061082]
[1641956216847,4.739e-05,3226.9,3226.8,19.34061082]
[1641956217655,4.739e-05,3226.9,3226.8,37.48061082]
[1641956217854,4.739e-05,3226.9,3226.8,36.70607082]
[1641956219601,3.10004739,3226.9,3226.8,13.8265]
[1641956219798,1.5492,3228.4,3228.2,1.44444388]
[1641956219799,0.01229877,3228.3,3228.2,1.44444388]
[1641956219998,0.01229877,3228.3,3227.5,1.22569063]
[1641956220199,0.77467,3228.1,3227.0,17.9292]
[1641956220398,5.17904829,3228.0,3227.0,12.4742]
[1641956220599,0.7748,3227.8,3227.0,12.4742]
[1641956220799,1.5497,3227.6,3227.0,12.4742]
[1641956221001,1.9947,3227.6,3227.0,4.9033]
[1641956221201,0.00341054,3227.5,3227.1,1.2431279]
[1641956221700,0.77487,3227.3,3227.1,1.2431279]
[1641956221900,1.54972,3227.3,3227.1,1.2431279]
[1641956222204,0.00170527,3227.2,3227.1,1.2431279]
[1641956222844,0.00170527,3227.2,3227.1,4.3431279]
[1641956223851,0.00170527,3227.2,3227.1,8.4931279]
[1641956224652,0.00170527,3227.2,3227.1,10.3431279]
[1641956225151,0.00170527,3227.2,3227.1,8.4931279]
[1641956241997,0.44670527,3227.2,3226.6,1.1946]
[1641956242200,0.02895211,3227.1,3226.2,3.9124]
[1641956242497,0.02895211,3227.1,3226.7,0.00113685]
[1641956242498,0.445,3227.0,3226.7,0.00113685]
[1641956242698,0.01037352,3226.9,3226.7,0.00113685]
[1641956242900,0.445,3226.8,3226.3,0.00341054]
[1641956243104,0.445,3226.8,3226.7,5.98971592]
[1641956249301,0.00113685,3227.1,3226.7,5.98971592]
[1641956249499,0.00113685,3227.1,3226.8,0.04438284]
[1641956249898,0.00113685,3227.1,3226.7,5.98971592]
[1641956253862,0.00113685,3227.1,3226.9,1.26549026]
[1641956258402,0.00113685,3227.1,3226.7,5.98971592]
[1641956258608,0.04133215,3227.0,3226.7,5.98971592]
[1641956258803,0.00113685,3227.1,3226.7,5.98971592]
[1641956259504,0.00113685,3227.1,3226.9,1.10994559]
[1641956261552,0.00113685,3227.1,3226.7,5.98971592]
[1641956261750,0.00494465,3227.0,3226.7,5.98971592]
[1641956262152,0.00113685,3227.1,3226.7,5.98971592]
[1641956262550,0.00113685,3227.1,3226.7,7.2076626]
[1641956262957,0.77602685,3227.1,3226.7,7.2076626]
[1641956263357,0.00113685,3227.1,3226.7,7.2076626]
[1641956263559,0.30359723,3226.9,3226.3,0.00341054]
[1641956263763,0.4745457,3226.8,3226.3,0.00341054]
[1641956263958,0.77503,3226.6,3225.4,0.00852635]
[1641956264206,0.445,3226.5,3225.3,0.00909478]
[1641956264607,0.445,3226.5,3226.2,1.30492822]
[1641956264801,0.77517,3226.3,3226.2,1.30492822]
[1641956265002,1.22017,3226.3,3226.2,1.30492822]
[1641956265603,1.52017,3226.3,3226.2,1.30492822]
[1641956266410,1.52017,3226.3,3224.9,3.6255]
[1641956266607,0.77518,3225.9,3224.9,3.6255]
[1641956266808,0.77518,3225.9,3225.3,1.49344895]
[1641956267107,0.77518,3225.9,3225.4,0.00852635]
[1641956267307,6.17841109,3226.3,3225.4,0.00852635]
[1641956267508,1.3,3226.2,3225.5,1.26415478]
[1641956267715,0.745,3226.2,3225.5,1.26415478]
[1641956267960,0.445,3226.2,3226.0,1.13620929]
[1641956268161,1.22012,3226.2,3225.6,1.23988951]
[1641956268361,1.99523,3226.2,3226.1,3.05454739]
[1641956268562,1.99523,3226.2,3226.1,3.05]
[1641956268563,0.445,3226.2,3226.1,3.05]
[1641956268764,0.445,3226.2,3226.1,3.05454739]
[1641956269163,0.445,3226.2,3226.1,7.74863687]
[1641956269763,0.445,3226.2,3226.1,9.27994353]
[1641956270164,0.27639994,3226.6,3226.1,9.27994353]
[1641956270664,0.27639994,3226.6,3226.2,0.00397897]
[1641956271064,3.37639994,3226.6,3226.2,0.00397897]
[1641956272602,0.05357506,3226.4,3226.2,0.00397897]
[1641956272803,0.05357506,3226.4,3223.8,3.67388707]
[1641956272804,6.25770509,3226.3,3224.8,0.02836951]
[1641956273005,4.39353286,3226.2,3225.2,0.00568423]
[1641956273206,0.445,3226.1,3225.2,0.00568423]
[1641956273406,0.745,3226.1,3225.2,0.00568423]
[1641956273606,0.07998305,3226.0,3225.2,0.00568423]
[1641956273809,2.77121,3225.9,3225.2,0.00568423]
[1641956274012,1.0,3225.8,3225.3,1.32895768]
[1641956274210,1.99575,3225.7,3225.3,1.32895768]
[1641956274509,0.3,3225.6,3225.4,0.00454738]
[1641956274708,0.745,3225.6,3225.4,0.00454738]
[1641956274912,2.82038,3225.6,3225.4,0.00454738]
[1641956275110,1.0,3225.5,3225.4,0.00454738]
[1641956275554,3.59576,3225.6,3225.4,0.00454738]
[1641956275752,5.1465139,3225.6,3225.4,0.00454738]
[1641956277156,0.27639994,3226.6,3225.4,0.03225627]
[1641956277356,0.27639994,3226.6,3225.4,0.00454738]
[1641956277556,0.00170527,3226.5,3225.5,0.00397896]
[1641956277756,0.00170527,3226.5,3225.4,1.19304738]
[1641956277960,0.00113685,3226.4,3225.5,0.00397896]
[1641956278459,0.00113685,3226.4,3225.9,1.21177837]
[1641956278660,0.77514,3226.2,3225.9,1.21177837]
[1641956278862,0.77514,3226.1,3226.0,0.00113684]
[1641956279143,0.77514,3226.1,3226.0,3.70113684]
[1641956280137,0.77514,3226.1,3226.0,6.50113684]
[1641956281130,3.87514,3226.1,3226.0,6.50113684]
[1641956281431,3.87514,3226.1,3226.0,3.70113684]
[1641956281734,3.1,3226.1,3226.0,3.70113684]
[1641956282135,3.1,3226.1,3226.0,6.40113684]
[1641956283075,3.1,3226.1,3226.0,9.05113684]
[1641956285882,0.00113685,3226.4,3226.1,9.0837]
[1641956286281,0.00113685,3226.4,3226.1,13.0563]
[1641956286480,3.685e-05,3226.4,3226.2,1.1871]
[1641956286710,3.685e-05,3226.4,3226.2,1.1882]
[1641956290961,3.10003685,3226.4,3226.2,1.1882]
[1641956291159,3.10003685,3226.4,3226.3,10.40058697]
[1641956291967,3.10003685,3226.4,3226.3,8.95]
[1641956291968,3.685e-05,3226.4,3226.3,8.95]
[1641956293365,3.685e-05,3226.4,3226.3,10.1751]
[1641956302319,3.685e-05,3226.4,3226.3,10.1251]
[1641956303124,3.685e-05,3226.4,3226.3,15.85037669]
[1641956303323,3.685e-05,3226.4,3226.3,33.99037669]
[1641956303623,3.685e-05,3226.4,3226.3,11.4251]
[1641956303822,3.685e-05,3226.4,3226.3,15.83597551]
[1641956304021,3.685e-05,3226.4,3226.3,14.31087551]
[1641956304225,3.685e-05,3226.4,3226.2,0.0011]
[1641956304426,0.445,3226.3,3226.2,0.0011]
[1641956304622,0.445,3226.3,3225.8,1.20199706]
[1641956304822,0.00910075,3226.2,3225.9,0.00280527]
[1641956305024,0.45410075,3226.2,3225.9,0.00280527]
[1641956305461,0.445,3226.2,3226.0,1.42135203]
[1641956305862,0.745,3226.2,3226.1,2.35166842]
[1641956307864,0.745,3226.2,3226.1,4.90166842]
[1641956308272,0.445,3226.2,3226.1,4.90166842]
[1641956308471,3.95566366,3227.1,3226.2,0.02801403]
[1641956308669,3.518,3227.2,3226.2,0.02801403]
[1641956308869,0.00174212,3226.7,3226.1,4.90166842]
[1641956309316,2.80402747,3227.6,3226.2,0.0011]
[1641956309317,0.0011737,3226.6,3226.2,0.0011]
[1641956309518,0.0011737,3226.6,3226.2,1.0011]
[1641956309719,0.00572109,3227.4,3226.2,0.0011]
[1641956309917,0.445,3227.3,3226.2,1.1542]
[1641956310224,0.00458424,3227.2,3226.2,5.50838412]
[1641956310422,0.44958424,3227.2,3226.2,5.50838412]
[1641956310621,0.00401582,3227.1,3226.2,5.50838412]
[1641956311021,0.00344739,3227.0,3226.2,5.50838412]
[1641956311422,0.00287897,3226.9,3226.2,5.50838412]
[1641956311821,0.00231055,3226.8,3226.2,5.50838412]
[1641956312220,0.00401582,3227.1,3226.2,5.50838412]
[1641956312623,0.00344739,3227.0,3226.2,5.50838412]
[1641956313081,0.00287897,3226.9,3226.2,5.50838412]
[1641956313482,0.00231055,3226.8,3226.2,5.50838412]
[1641956313981,0.00401582,3227.1,3226.2,5.50838412]
[1641956314386,0.00344739,3227.0,3226.4,0.7746758]
[1641956314581,0.00344739,3227.0,3226.5,4.37410759]
[1641956314782,0.00287897,3226.9,3226.5,4.37410759]
[1641956315183,0.00231055,3226.8,3226.6,2.70405849]
[1641956315386,0.00231055,3226.8,3226.7,11.53333817]
[1641956315583,1.25427747,3227.6,3226.7,11.53333817]
[1641956315584,0.00628951,3227.5,3226.7,11.53333817]
[1641956315884,0.00572109,3227.4,3226.7,11.53333817]
[1641956316287,0.00515266,3227.3,3226.8,1.46448323]
[1641956316723,0.00458424,3227.2,3226.8,1.46448323]
[1641956317224,1.55427747,3227.6,3226.8,1.46448323]
[1641956317225,0.00401582,3227.1,3226.8,1.46448323]
[1641956317627,0.00344739,3227.0,3226.8,1.46448323]
[1641956318031,0.00287897,3226.9,3226.8,1.46448323]
[1641956318629,0.00287897,3226.9,3226.8,9.81448323]
[1641956330172,0.00287897,3226.9,3226.8,1.46448323]
[1641956330573,0.00287897,3226.9,3226.8,6.01448323]
[1641956330773,0.00287897,3226.9,3226.8,1.46448323]
[1641956330980,0.44787897,3226.9,3226.6,1.44953169]
[1641956331374,0.00231055,3226.8,3226.6,1.44953169]
[1641956331617,0.445,3226.7,3226.6,4.19953169]
[1641956332021,0.445,3226.7,3226.6,5.68315247]
[1641956341326,0.445,3226.7,3226.6,4.19953169]
[1641956341512,0.445,3226.7,3226.6,6.69953169]
[1641956343370,0.445,3226.7,3226.6,4.19953169]
[1641956344375,0.445,3226.7,3226.6,6.84953169]
[1641956344575,0.445,3226.7,3226.6,10.49620713]
[1641956344774,0.445,3226.7,3226.6,6.84953169]
[1641956349827,0.00231055,3226.8,3226.6,6.84953169]
[1641956351097,0.00231055,3226.8,3226.7,11.33688721]
[1641956351499,0.00231055,3226.8,3226.7,7.65]
[1641956352700,0.00231055,3226.8,3226.7,12.00418412]
[1641956353107,0.00231055,3226.8,3226.7,7.65]
[1641956353304,0.00231055,3226.8,3226.7,10.2484]
[1641956353503,1.055e-05,3226.8,3226.7,14.90258412]
[1641956353706,1.055e-05,3226.8,3226.7,15.90258412]
[1641956353903,1.055e-05,3226.8,3226.7,16.67718642]
[1641956354123,1.055e-05,3226.8,3226.7,30.4630023]
[1641956354823,1.055e-05,3226.8,3226.7,30.7630023]
[1641956355022,1.055e-05,3226.8,3226.7,30.4630023]
[1641956356929,1.055e-05,3226.8,3226.7,30.7630023]
[1641956357125,1.055e-05,3226.8,3226.7,10.2484]
[1641956357326,1.055e-05,3226.8,3226.7,28.6884]
[1641956357526,1.055e-05,3226.8,3226.7,29.9884]
[1641956357725,1.055e-05,3226.8,3226.7,10.2484]
[1641956357978,1.055e-05,3226.8,3226.7,11.8484]
[1641956358479,1.055e-05,3226.8,3226.7,12.6230165]
[1641956358878,1.055e-05,3226.8,3226.7,14.60104885]
[1641956359377,1.055e-05,3226.8,3226.7,32.74104885]
[1641956359779,1.055e-05,3226.8,3226.7,32.44104885]
[1641956362821,1.055e-05,3226.8,3226.7,31.66643235]
[1641956363025,1.055e-05,3226.8,3226.7,32.44100755]
[1641956364830,1.055e-05,3226.8,3226.7,29.6884]
[1641956365029,1.055e-05,3226.8,3226.7,30.4629482]
[1641956366080,1.055e-05,3226.8,3226.7,30.7629482]
[1641956370527,1.055e-05,3226.8,3226.7,31.5374582]
[1641956372970,1.055e-05,3226.8,3226.7,32.94505588]
[1641956373968,1.055e-05,3226.8,3226.7,31.5374582]
[1641956380973,1.055e-05,3226.8,3226.7,31.9824582]
[1641956381369,0.80899869,3229.0,3226.7,31.9824582]
[1641956381569,1.18441116,3229.2,3226.9,18.14]
[1641956381770,0.01194744,3228.9,3227.7,18.14]
[1641956381968,0.01194744,3228.9,3228.8,1.32877921]
[1641956382168,0.01281116,3229.2,3228.8,2.50306679]
[1641956382569,0.01308428,3229.1,3228.8,2.50306679]
[1641956382975,0.01251586,3229.0,3228.8,2.50306679]
[1641956383271,0.01194744,3228.9,3228.8,2.50306679]
[1641956383871,0.01194744,3228.9,3228.8,4.80306679]
[1641956384720,0.01194744,3228.9,3228.8,8.61170325]
[1641956384917,0.01194744,3228.9,3228.8,4.80306679]
[1641956385120,0.01194744,3228.9,3228.8,8.96976176]
[1641956386219,0.01194744,3228.9,3228.8,4.80306679]
[1641956386620,0.01194744,3228.9,3228.8,8.70606215]
[1641956386820,0.01194744,3228.9,3228.8,2.50306679]
[1641956387219,0.01194744,3228.9,3228.8,1.32877921]
[1641956387418,0.01194744,3228.9,3228.2,4.3535]
[1641956387619,0.0068835,3228.8,3228.2,4.3535]
[1641956387872,0.01137901,3228.8,3228.2,4.3535]
[1641956388073,0.01081059,3228.7,3228.2,4.3535]
[1641956388470,0.01024217,3228.6,3228.3,1.22101273]
[1641956388873,0.00967374,3228.5,3228.3,1.22101273]
[1641956389073,0.00967374,3228.5,3228.4,9.43902715]
[1641956389272,1.54878,3229.1,3228.4,9.43902715]
[1641956389473,6.88434,3229.3,3228.4,9.43902715]
[1641956389673,0.01251586,3229.0,3228.4,9.43902715]
[1641956390074,0.01194744,3228.9,3228.4,9.43902715]
[1641956390580,0.01137901,3228.8,3228.4,9.73902715]
[1641956390775,0.01137901,3228.8,3228.4,1.43902715]
[1641956390975,0.01081059,3228.7,3228.5,18.14]
[1641956391378,0.01024217,3228.6,3228.4,1.43902715]
[1641956391616,0.01024217,3228.6,3228.4,2.43902715]
[1641956391819,0.00967374,3228.5,3228.4,10.48902715]
[1641956392017,0.00967374,3228.5,3228.4,11.48902715]
[1641956392620,0.00967374,3228.5,3228.4,10.48902715]
[1641956394923,0.00967374,3228.5,3228.4,10.18902715]
[1641956396169,0.00967374,3228.5,3228.4,28.32902715]
[1641956396572,0.00967374,3228.5,3228.4,10.18902715]
[1641956397671,0.00967374,3228.5,3228.4,12.86081227]
[1641956398678,0.00967374,3228.5,3228.4,28.32902715]
[1641956398876,0.00967374,3228.5,3228.4,10.18902715]
[1641956399328,0.00967374,3228.5,3228.4,28.32902715]
[1641956399926,7.374e-05,3228.5,3228.4,29.62902715]
[1641956400129,7.374e-05,3228.5,3228.4,29.92902715]
[1641956400325,7.374e-05,3228.5,3228.4,28.79]
[1641956400937,7.374e-05,3228.5,3228.4,30.33815]
[1641956403878,7.374e-05,3228.5,3228.4,30.78315]
[1641956405680,7.374e-05,3228.5,3228.4,9.05]
[1641956406822,4.3664192,3229.4,3228.4,9.05]
[1641956407021,0.445,3229.6,3229.3,2.41621954]
[1641956407821,0.00575798,3229.5,3229.3,2.41621954]
[1641956408225,0.00518956,3229.4,3229.3,2.41621954]
[1641956408827,0.00518956,3229.4,3229.3,1.27406256]
[1641956409227,0.08603629,3229.4,3229.3,1.27406256]
[1641956409527,0.16688302,3229.4,3229.3,1.27406256]
[1641956409928,0.16688302,3229.4,3228.6,5.1825]
[1641956410386,0.00462113,3229.3,3228.6,5.1825]
[1641956410782,0.00405271,3229.2,3228.6,5.1825]
[1641956410982,0.00405271,3229.2,3229.0,1.23814519]
[1641956411184,0.00348428,3229.1,3229.0,1.23814519]
[1641956411583,0.00348428,3229.1,3229.0,6.43814519]
[1641956414531,0.08433101,3229.1,3229.0,9.08814519]
[1641956414732,0.16517774,3229.1,3229.0,9.08814519]
[1641956414926,0.16517774,3229.1,3229.0,6.43814519]
[1641956415529,0.16517774,3229.1,3229.0,9.68814519]
[1641956416437,0.16517774,3229.1,3229.0,14.0972476]
[1641956416634,0.16517774,3229.1,3229.0,32.29910241]
[1641956416635,7.774e-05,3229.1,3229.0,32.29910241]
[1641956416835,7.774e-05,3229.1,3229.0,32.59910241]
[1641956417039,3.2925,3230.1,3230.0,1.18252784]
[1641956417894,9.89788588,3230.6,3230.0,2.42344662]
[1641956418288,0.00795793,3230.5,3230.0,2.42344662]
[1641956418690,0.00738951,3230.4,3230.0,2.42344662]
[1641956419092,0.00682109,3230.3,3230.0,2.42344662]
[1641956419489,0.00625266,3230.2,3230.0,2.42344662]
[1641956419889,0.00568424,3230.1,3230.0,2.42344662]
[1641956420491,0.00568424,3230.1,3230.0,6.57344662]
[1641956423631,0.00568424,3230.1,3230.0,10.27717362]
[1641956424233,0.00568424,3230.1,3230.0,13.98090062]
[1641956429426,0.00568424,3230.1,3230.0,7.407454]
[1641956429829,0.45068424,3230.1,3230.0,7.407454]
[1641956438428,0.45068424,3230.1,3230.0,9.707454]
[1641956442087,0.45068424,3230.1,3230.0,7.407454]
[1641956444336,1.22482894,3230.1,3230.0,7.407454]
[1641956446239,0.45068424,3230.1,3230.0,7.407454]
[1641956447040,0.75068424,3230.1,3230.0,7.407454]
[1641956447239,1.52488054,3230.1,3230.0,7.407454]
[1641956447439,1.82488054,3230.1,3230.0,7.407454]
[1641956447638,2.82488054,3230.1,3230.0,7.407454]
[1641956447883,2.52488054,3230.1,3230.0,7.407454]
[1641956448280,2.82488054,3230.1,3230.0,7.407454]
[1641956448880,4.37337054,3230.1,3230.0,7.407454]
[1641956449581,4.40746128,3230.1,3230.0,1.212444]
[1641956450182,4.40177704,3230.1,3230.0,1.212444]
[1641956450485,4.40177704,3230.1,3229.3,2.7765951]
[1641956450684,0.77439,3229.5,3229.3,2.7765951]
[1641956450882,0.445,3229.4,3229.3,2.7765951]
[1641956453235,0.445,3229.4,3229.3,5.7265951]
[1641956454435,3.545,3229.4,3229.3,2.7765951]
[1641956457082,3.545,3229.4,3229.3,2.72835123]
[1641956458086,3.545,3229.4,3229.3,2.59148876]
[1641956459127,3.545,3229.4,3229.3,4.75462629]
[1641956460133,3.545,3229.4,3229.3,4.70638242]
[1641956460734,3.545,3229.4,3229.3,2.40638242]
[1641956461134,4.845,3229.4,3229.3,2.26951995]
[1641956461335,5.145,3229.4,3229.3,2.26951995]
[1641956461935,4.845,3229.4,3229.3,2.26951995]
[1641956462139,4.845,3229.4,3229.3,2.22127608]
[1641956462978,3.545,3229.4,3229.3,6.67127608]
[1641956463180,3.545,3229.4,3229.3,6.62303221]
[1641956464280,3.545,3229.4,3229.3,6.57478834]
[1641956465282,3.545,3229.4,3229.3,6.43792587]
[1641956465782,3.1,3229.4,3229.3,10.32020578]
[1641956465981,3.1,3229.4,3229.3,14.27566867]
[1641956466185,3.1,3229.4,3229.3,10.38792587]
[1641956466382,3.1,3229.4,3229.3,10.339682]
[1641956466840,3.1,3229.4,3229.3,14.12785668]
[1641956467325,3.1,3229.4,3229.3,13.98697142]
[1641956467931,3.1,3229.4,3229.3,10.20281953]
[1641956468333,3.1,3229.4,3229.3,13.98473115]
[1641956468533,3.1,3229.4,3229.3,13.99129647]
[1641956468736,3.1,3229.4,3229.3,10.15457566]
[1641956468935,3.1,3229.4,3229.3,13.9829242]
[1641956469534,3.1,3229.4,3229.3,13.84606173]
[1641956469934,3.1,3229.4,3229.3,10.31771319]
[1641956470382,3.1,3229.4,3229.3,14.20810638]
[1641956471286,3.1,3229.4,3229.3,13.90810638]
[1641956471484,3.1,3229.4,3229.3,13.77124391]
[1641956472482,3.1,3229.4,3229.3,13.72300004]
[1641956473584,3.1,3229.4,3229.3,13.67475617]
[1641956474529,3.1,3229.4,3229.3,13.5378937]
[1641956474931,3.1,3229.4,3229.3,9.59925664]
[1641956475128,3.1,3229.4,3229.3,12.30713556]
[1641956475536,3.1,3229.4,3229.3,9.46239417]
[1641956476734,3.1,3229.4,3229.3,9.4141503]
[1641956477739,3.1,3229.4,3229.3,9.27728783]
[1641956478783,3.1,3229.4,3229.3,9.14042536]
[1641956479684,3.1,3229.4,3229.3,9.09218149]
[1641956480688,3.1,3229.4,3229.3,8.95531902]
[1641956481725,3.1,3229.4,3229.3,8.90707515]
[1641956482930,3.1,3229.4,3229.3,8.85883128]
[1641956483831,3.1,3229.4,3229.3,8.72196881]
[1641956484933,3.1,3229.4,3229.3,8.58510634]
[1641956485984,3.1,3229.4,3229.3,8.53686247]
[1641956486988,3.1,3229.4,3229.3,8.4]
[1641956487788,3.05,3229.4,3229.3,8.4]
[1641956488390,3.05,3229.4,3229.3,4.45]
[1641956489831,3.05,3229.4,3229.3,7.4]
[1641956490233,3.05,3229.4,3229.3,4.45]
[1641956490836,3.05,3229.4,3229.3,7.15]
[1641956491434,3.05,3229.4,3229.3,4.45]
[1641956492636,3.05,3229.4,3229.3,6.9]
[1641956494084,3.05,3229.4,3229.3,4.45]
[1641956496187,3.05,3229.4,3228.8,3.48400141]
[1641956496491,3.05,3229.4,3229.3,2.54824387]
[1641956496948,3.05170528,3229.4,3229.3,2.54824387]
[1641956497748,3.05170528,3229.4,3229.3,7.04824387]
[1641956498356,3.05170528,3229.4,3229.3,7.18510634]
[1641956498755,3.05170528,3229.4,3229.3,9.23510634]
[1641956499354,3.05170528,3229.4,3229.3,9.37196881]
[1641956500399,3.05170528,3229.4,3229.3,9.42021268]
[1641956501387,3.05170528,3229.4,3229.3,9.46845655]
[1641956502388,3.05170528,3229.4,3229.3,9.60531902]
[1641956503493,3.05170528,3229.4,3229.3,9.65356289]
[1641956504530,3.05170528,3229.4,3229.3,9.79042536]
[1641956505532,3.05170528,3229.4,3229.3,9.83866923]
[1641956506536,3.05170528,3229.4,3229.3,9.8869131]